Workbook

Sheet Summary
A3: Paragon Mortgages (No.23) PLC
A5: Information as at the Principal Determination Date | B5: 2015-09-30 | C5: 2015-12-31 | D5: 2016-03-31 | E5: 2016-06-30 | F5: 2016-09-30 | G5: 2016-12-30 | H5: 2017-03-31 | I5: 2017-06-30 | J5: 2017-09-29 | K5: 2017-12-29 | L5: 2018-03-29 | M5: 2018-06-29 | N5: 2018-09-28 | O5: 2018-12-31 | P5: 2019-03-29 | Q5: 2019-06-28 | R5: 2019-09-30
A6: Mortgage Asset Balance | B6: 297064.9372 | C6: 294037.8391 | D6: 291064 | E6: 286777.9575 | F6: 283448.3668 | G6: 278826.535 | H6: 271355.9359 | I6: 189011.9376 | J6: 119760.3078 | K6: 97911.58603 | L6: 85583.56725 | M6: 73221.29482 | N6: 69238.08803 | O6: 63897.44475 | P6: 59829.96819 | Q6: 43468.39331 | R6: 0
A7: Discretionary Further Advance Prefunding Reserve | B7: 1500 | C7: 1466 | D7: 1232 | E7: 1066 | F7: 873 | G7: 0 | H7: 0 | I7: 0 | J7: 0 | K7: 0 | L7: 0 | M7: 0 | N7: 0 | O7: 0 | P7: 0 | Q7: 0 | R7: 0
A8: Total Assets | B8: =+B6+B7 -> 298564.9372 | C8: 295503.8391 | D8: 292296 | E8: 287843.9575 | F8: 284321.3668 | G8: 278826.535 | H8: =+H6+H7 -> 271355.9359 | I8: 189011.9376 | J8: =+J6+J7 -> 119760.3078 | K8: 97911.58603 | L8: =+L6+L7 -> 85583.56725 | M8: 73221.29482 | N8: =+N6+N7 -> 69238.08803 | O8: 63897.44475 | P8: =+P6+P7 -> 59829.96819 | Q8: 43468.39331 | R8: =+R6+R7 -> 0
A9: Total Notes | B9: =SUM(B10:B14) -> 298565 | C9: 295504 | D9: 292296 | E9: 287844 | F9: 284321 | G9: 278827 | H9: =SUM(H10:H14) -> 271356 | I9: =SUM(I10:I14)+1 -> 189012 | J9: =SUM(J10:J14) -> 119760 | K9: =SUM(K10:K14)+1 -> 97912 | L9: =SUM(L10:L14)+1 -> 85584 | M9: =SUM(M10:M14)-1 -> 73221 | N9: =SUM(N10:N14)-1 -> 69238 | O9: =SUM(O10:O14) -> 63897 | P9: =SUM(P10:P14) -> 59830 | Q9: =SUM(Q10:Q14) -> 43468 | R9: =SUM(R10:R14) -> 0
A10: Class A1 Notes | B10: 72914 | C10: 72057 | D10: 71159 | E10: 69913 | F10: 68927 | G10: 67389 | H10: 65297 | I10: 42245 | J10: 22859 | K10: 16742 | L10: 13291 | M10: 9831 | N10: 8716 | O10: 7220 | P10: 6082 | Q10: 1501 | R10: 0
A11: Class A2 Notes | B11: 187546 | C11: 185342 | D11: 183032 | E11: 179826 | F11: 177289 | G11: 173333 | H11: 167954 | I11: 108661 | J11: 58796 | K11: 43064 | L11: 34187 | M11: 25286 | N11: 22418 | O11: 18572 | P11: 15643 | Q11: 3862 | R11: 0
A12: Class B Notes | B12: 14800 | C12: 14800 | D12: 14800 | E12: 14800 | F12: 14800 | G12: 14800 | H12: 14800 | I12: 14800 | J12: 14800 | K12: 14800 | L12: 14800 | M12: 14800 | N12: 14800 | O12: 14800 | P12: 14800 | Q12: 14800 | R12: 0
A13: Class C Notes | B13: 15800 | C13: 15800 | D13: 15800 | E13: 15800 | F13: 15800 | G13: 15800 | H13: 15800 | I13: 15800 | J13: 15800 | K13: 15800 | L13: 15800 | M13: 15800 | N13: 15800 | O13: 15800 | P13: 15800 | Q13: 15800 | R13: 0
A14: Class E Notes | B14: 7505 | C14: 7505 | D14: 7505 | E14: 7505 | F14: 7505 | G14: 7505 | H14: 7505 | I14: 7505 | J14: 7505 | K14: 7505 | L14: 7505 | M14: 7505 | N14: 7505 | O14: 7505 | P14: 7505 | Q14: 7505 | R14: 0
A15: Class B, C and E Notes as a % of the Total Notes | B15: =SUM(B12:B14)/B9 -> 0.1276271499 | C15: 0.1289491851 | D15: 0.1303644251 | E15: 0.132380734 | F15: 0.1340210537 | G15: 0.136661801 | H15: =SUM(H12:H14)/H9 -> 0.1404243872 | I15: 0.2016009566 | J15: =SUM(J12:J14)/J9 -> 0.3181780227 | K15: 0.3891759948 | L15: =SUM(L12:L14)/L9 -> 0.4452350907 | M15: 0.5204108111 | N15: =SUM(N12:N14)/N9 -> 0.5503480748 | O15: 0.5963503764 | P15: =SUM(P12:P14)/P9 -> 0.6368878489 | Q15: 0.8766218828 | R15: 0
A16: Lifetime Redemption Rate | B16: 0.0245 | C16: 0.0341 | D16: 0.0375 | E16: 0.0433 | F16: 0.0444 | G16: 0.0484 | H16: 0.0565 | I16: 0.2084 | J16: 0.3378 | K16: 0.3635 | L16: 0.3685 | M16: 0.3772 | N16: 0.3652 | O16: 0.359 | P16: 0.3512 | Q16: 0.3848 | R16: 1
A17: Quarterly Redemption Rate | B17: 0.0057 | C17: 0.0109 | D17: 0.0112 | E17: 0.0153 | F17: 0.0124 | G17: 0.0175 | H17: 0.0268 | I17: 0.3038 | J17: 0.3664 | K17: 0.1824 | L17: 0.1259 | M17: 0.1445 | N17: 0.0551 | O17: 0.0771 | P17: 0.0637 | Q17: 0.2735 | R17: 1
A18: Further Advances released in the quarter | B18: 0 | C18: 34 | D18: 234 | E18: 167 | F18: 193 | G18: 323 | H18: 0 | I18: 84 | J18: 0 | K18: 0 | L18: 0 | M18: 0 | N18: 0 | O18: 0 | P18: 0 | Q18: 0 | R18: 0
A19: First Loss Fund Balance | B19: 7501 | C19: 7501 | D19: 7501 | E19: 7501 | F19: 7501 | G19: 7501 | H19: 7501 | I19: 7501 | J19: 7501 | K19: 7501 | L19: 7501 | M19: 7501 | N19: 7501 | O19: 7501 | P19: 7501 | Q19: 7501 | R19: 0
A20: Liquidity Amount of the First Loss Fund (2.50% of the Class A, B and C Notes) | B20: =SUM(B10:B13)*2.5% -> 7276.5 | C20: 7199.975 | D20: 7119.775 | E20: 7008.475 | F20: 6920.4 | G20: 6783.05 | H20: =SUM(H10:H13)*2.5% -> 6596.275 | I20: 4537.65 | J20: =SUM(J10:J13)*2.5% -> 2806.375 | K20: 2260.15 | L20: =SUM(L10:L13)*2.5% -> 1951.95 | M20: 1642.925 | N20: =SUM(N10:N13)*2.5% -> 1543.35 | O20: 1409.8 | P20: =SUM(P10:P13)*2.5% -> 1308.125 | Q20: 899.075 | R20: =SUM(R10:R13)*2.5% -> 0
A21: Liquidity Excess Amount (First Loss Fund - Liquidity Amount) | B21: =B19-B20 -> 224.5 | C21: 301.025 | D21: 381.225 | E21: 492.525 | F21: 580.6 | G21: 717.95 | H21: =H19-H20 -> 904.725 | I21: 2963.35 | J21: =J19-J20 -> 4694.625 | K21: 5240.85 | L21: =L19-L20 -> 5549.05 | M21: 5858.075 | N21: =N19-N20 -> 5957.65 | O21: 6091.2 | P21: =P19-P20 -> 6192.875 | Q21: 6601.925 | R21: =R19-R20 -> 0
A22: First Loss Fund as a % of the Assets | B22: =+B19/B8 -> 0.02512351273 | C22: 0.02538376498 | D22: 0.02566234228 | E22: 0.02605925817 | F22: 0.02638211853 | G22: 0.02690203068 | H22: =+H19/H8 -> 0.02764266046 | I22: 0.0396853241 | J22: =+J19/J8 -> 0.06263343954 | K22: 0.07660993253 | L22: =+L19/L8 -> 0.08764533007 | M22: 0.1024428756 | N22: =+N19/N8 -> 0.1083363249 | O22: 0.1173912357 | P22: =+P19/P8 -> 0.1253719537 | Q22: 0.1725621637 | R22: 0
A23: Opening PDL Balance | B23: 0 | C23: 0 | D23: 0 | E23: 0 | F23: 0 | G23: 0 | H23: 0 | I23: 0 | J23: 0 | K23: 0 | L23: 0 | M23: 0 | N23: 0 | O23: 0 | P23: 0 | Q23: 0 | R23: 0
A24: Quarterly Losses | B24: =+B92+B122 -> 0 | C24: 0 | D24: 0 | E24: 0 | F24: 0 | G24: 0 | H24: =+H92+H122 -> 0 | I24: 0 | J24: 0 | K24: =+K92+K122 -> 0 | L24: 0 | M24: =+M92+M122 -> 0 | N24: 0 | O24: =+O92+O122 -> 0 | P24: 0 | Q24: =+Q92+Q122 -> 0 | R24: 0
A25: Quarterly Loss Rate (annualised) | B25: =1-(1-B24/B6)^4 -> 0 | C25: 0 | D25: 0 | E25: 0 | F25: 0 | G25: 0 | H25: =1-(1-H24/H6)^4 -> 0 | I25: 0 | J25: =1-(1-J24/J6)^4 -> 0 | K25: 0 | L25: =1-(1-L24/L6)^4 -> 0 | M25: 0 | N25: =1-(1-N24/N6)^4 -> 0 | O25: 0 | P25: =1-(1-P24/P6)^4 -> 0 | Q25: 0 | R25: 0
A26: PDL Replenishment made during the quarter (-ve = recoveries) | B26: 0 | C26: 0 | D26: 0 | E26: 0 | F26: 0 | G26: 0 | H26: 0 | I26: 0 | J26: 0 | K26: 0 | L26: 0 | M26: 0 | N26: 0 | O26: 0 | P26: 0 | Q26: 0 | R26: 0
A27: Outstanding PDL at end of the quarter | B27: =B23+B24-B26 -> 0 | C27: 0 | D27: 0 | E27: 0 | F27: 0 | G27: 0 | H27: =H23+H24-H26 -> 0 | I27: 0 | J27: =J23+J24-J26 -> 0 | K27: 0 | L27: =L23+L24-L26 -> 0 | M27: 0 | N27: =N23+N24-N26 -> 0 | O27: 0 | P27: =P23+P24-P26 -> 0 | Q27: 0 | R27: =R23+R24-R26 -> 0
A28: Spread Trap repayment in the quarter | B28: N/A | C28: N/A | D28: N/A | E28: N/A | F28: N/A | G28: N/A | H28: N/A | I28: N/A | J28: N/A | K28: N/A | L28: N/A | M28: N/A | N28: N/A | O28: N/A | P28: N/A | Q28: N/A | R28: N/A
A29: Spread % (WA Funding Rate less WA Interest Rate) | B29: 0.0199 | C29: 0.0198 | D29: 0.0196 | E29: 0.0196 | F29: 0.0202 | G29: 0.0213 | H29: 0.0222 | I29: 0.031 | J29: 0.0309 | K29: 0.0281 | L29: 0.0264 | M29: 0.0237 | N29: 0.0225 | O29: 0.0218 | P29: 0.02007112584 | Q29: 0.02431275046 | R29: 0
A30: Total Income as a % of the Assets | B30: 0.0092 | C30: 0.0122 | D30: 0.0117 | E30: 0.012 | F30: 0.0124 | G30: 0.0123 | H30: 0.0123 | I30: 0.0108 | J30: 0.0107 | K30: 0.0119 | L30: 0.0126 | M30: 0.0129 | N30: 0.0134 | O30: 0.0134 | P30: 0.0138660657 | Q30: 0.01260237339 | R30: 0
A31: Quarterly surplus income to the Issuer (inc Issuer Services Provider Fee) | B31: 1042 | C31: 1756 | D31: 1564 | E31: 1625 | F31: 1676 | G31: 1684 | H31: 1640 | I31: 1426 | J31: 970 | K31: 688 | L31: 590 | M31: 497 | N31: 444 | O31: 408 | P31: 399 | Q31: 283 | R31: =430+7501 -> 7931
A32: Surplus Income as a % of the Assets | B32: =+B31/300029 -> 0.00347299761 | C32: =+C31/B8 -> 0.005881467584 | D32: 0.005292655435 | E32: 0.005559432904 | F32: 0.005822599213 | G32: 0.005922875298 | H32: 0.005881793137 | I32: 0.005255090497 | J32: 0.00513195099 | K32: 0.005744808213 | L32: 0.00602584458 | M32: 0.005807189581 | N32: 0.00606380973 | O32: 0.00589271038 | P32: 0.006244381157 | Q32: 0.004730071042 | R32: 0
A33: Losses as a % of the Assets | B33: =+B24/300029 -> 0 | C33: =+C24/B8 -> 0 | D33: 0 | E33: 0 | F33: 0 | G33: 0 | H33: 0 | I33: 0 | J33: 0 | K33: 0 | L33: 0 | M33: 0 | N33: 0 | O33: 0 | P33: 0 | Q33: 0 | R33: 0
A34: Number of Properties in Possession | B34: =+B90+B120 -> 0 | C34: 0 | D34: 0 | E34: 0 | F34: =+F90+F120 -> 0 | G34: 0 | H34: =+H90+H120 -> 0 | I34: 0 | J34: =+J90+J120 -> 0 | K34: 0 | L34: =+L90+L120 -> 0 | M34: 0 | N34: =+N90+N120 -> 0 | O34: 0 | P34: =+P90+P120 -> 0 | Q34: 0 | R34: =+R90+R120 -> 0
A35: Appointment of a Receiver of Rent | B35: 0 | C35: 0 | D35: 0 | E35: 0 | F35: =+F91+F121 -> 0 | G35: 0 | H35: =+H91+H121 -> 0 | I35: 0 | J35: =+J91+J121 -> 0 | K35: 1 | L35: =+L91+L121 -> 1 | M35: 1 | N35: 0 | O35: =+O91+O121 -> 0 | P35: 0 | Q35: =+Q91+Q121 -> 0 | R35: 0
A36: Average Number of months (Possessions) in Arrears at the Sale Date | B36: 0 | C36: 0 | D36: 0 | E36: 0 | F36: 0 | G36: 0 | H36: 0 | I36: 0 | J36: 0 | K36: 0 | L36: 0 | M36: 0 | N36: 0 | O36: 0 | P36: 0 | Q36: 0 | R36: 0
A37: Average Number of months (RoR) in Arrears at the Sale Date | B37: 0 | C37: 0 | D37: 0 | E37: 0 | F37: 0 | G37: 0 | H37: 0 | I37: 0 | J37: 0 | K37: 0 | L37: 0 | M37: 0 | N37: 11.22 | O37: 0 | P37: 0 | Q37: 0 | R37: 0
A38: Arrears excluding Receiver of Rent and Possession Cases
A39: Performing Loans | B39: 1 | C39: 1 | D39: 1 | E39: 1 | F39: 1 | G39: 1 | H39: 1 | I39: 1 | J39: 0.9990849354 | K39: 0.9993857487 | L39: 1 | M39: 0.9979000865 | N39: 0.9991648383 | O39: 0.9990950342 | P39: 0.9990335111 | Q39: 0.9964680484 | R39: 0
A40: >1 to 2 months arrears | B40: 0 | C40: 0 | D40: 0 | E40: 0 | F40: 0 | G40: 0 | H40: 0 | I40: 0 | J40: 0.0009150646152 | K40: 0.0006142512573 | L40: 0 | M40: 0.001309000497 | N40: 0 | O40: 0 | P40: 0 | Q40: 0.002201674659 | R40: 0
A41: >2 to 3 months arrears | B41: 0 | C41: 0 | D41: 0 | E41: 0 | F41: 0 | G41: 0 | H41: 0 | I41: 0 | J41: 0 | K41: 0 | L41: 0 | M41: 0.0007909130131 | N41: 0 | O41: 0 | P41: 0.0009664888976 | Q41: 0 | R41: 0
A42: >3 months arrears | B42: 0 | C42: 0 | D42: 0 | E42: 0 | F42: 0 | G42: 0 | H42: 0 | I42: 0 | J42: 0 | K42: 0 | L42: 0 | M42: 0 | N42: 0.0008351617101 | O42: 0.0009049657655 | P42: 0 | Q42: 0.001330276911 | R42: 0
A43: Total | B43: =SUM(B39:B42) -> 1 | C43: 1 | D43: 1 | E43: 1 | F43: 1 | G43: 1 | H43: 1 | I43: 1 | J43: 1 | K43: 1 | L43: 1 | M43: 1 | N43: 1 | O43: 1 | P43: 1 | Q43: 1 | R43: =SUM(R39:R42) -> 0
A44: Total Value of Arrears (£000's) | B44: 0 | C44: 0 | D44: 0.0029100444 | E44: 0.00584999172 | F44: 0.00881984448 | G44: 0.01181995925 | H44: 3.00118e-05 | I44: 0 | J44: 1.8525 | K44: 4.912959718 | L44: 7.52404016 | M44: 11.25958035 | N44: 3.339200008 | O44: 1.615350123 | P44: 1.086620113 | Q44: 2.216699994 | R44: 0
A45: Total Value of Arrears as a % of the Notes Issued (£300,029,022) | B45: =+B44/300029 -> 0 | C45: 0 | D45: 9.69921041e-09 | E45: 1.949808758e-08 | F45: 2.939663992e-08 | G45: 3.939605588e-08 | H45: =+H44/300029 -> 1.000296638e-10 | I45: 0 | J45: =+J44/300029 -> 6.174403141e-06 | K45: 1.637494948e-05 | L45: =+L44/300029 -> 2.507770969e-05 | M45: 3.752830677e-05 | N45: =+N44/300029 -> 1.112959083e-05 | O45: 5.38397996e-06 | P45: =+P44/300029 -> 3.621716944e-06 | Q45: 7.38828578e-06 | R45: =+R44/300029 -> 0
A47: Underlying Assets | B47: =+B5 -> 2015-09-30 | C47: 2015-12-31 | D47: 2016-03-31 | E47: 2016-06-30 | F47: 2016-09-30 | G47: 2016-12-30 | H47: =+H5 -> 2017-03-31 | I47: 2017-06-30 | J47: =+J5 -> 2017-09-29 | K47: 2017-12-29 | L47: =+L5 -> 2018-03-29 | M47: 2018-06-29 | N47: =+N5 -> 2018-09-28 | O47: 2018-12-31 | P47: =+P5 -> 2019-03-29 | Q47: 2019-06-28 | R47: =+R5 -> 2019-09-30
A48: Weighted Average LTV | B48: 0.7263633573 | C48: 0.7265018412 | D48: 0.7262529564 | E48: 0.726443824 | F48: 0.7257348694 | G48: 0.7260567798 | H48: 0.7256453626 | I48: 0.7220689824 | J48: 0.7202530708 | K48: 0.7167101682 | L48: 0.7164321214 | M48: 0.7178753152 | N48: 0.7163283926 | O48: 0.7146762723 | P48: 0.7145163802 | Q48: 0.7098212438 | R48: 0
A49: Weighted Average Nationwide Indexed LTV | B49: 0.7139090902 | C49: 0.7055721542 | D49: 0.6986351983 | E49: 0.6931012319 | F49: 0.6697961507 | G49: 0.6651324057 | H49: 0.6596644302 | I49: 0.6584727177 | J49: 0.6453945236 | K49: 0.6434894171 | L49: 0.6411043622 | M49: 0.6349879035 | N49: 0.6341362366 | O49: 0.6293769044 | P49: 0.6396705844 | Q49: 0.6347497946 | R49: 0
A50: Weighted Average Halifax Indexed LTV | B50: 0.7071530637 | C50: 0.6936338479 | D50: 0.6910875416 | E50: 0.6614192786 | F50: N/A | G50: N/A | H50: N/A | I50: N/A | J50: N/A | K50: N/A | L50: N/A | M50: N/A | N50: N/A | O50: N/A | P50: N/A | Q50: N/A | R50: N/A
A51: % of Fixed Rate Mortgages (reverting to Libor plus a variable margin) | B51: 0.8910472882 | C51: 0.8990227253 | D51: 0.9042637933 | E51: 0.9119511553 | F51: 0.9105948085 | G51: 0.9061384782 | H51: 0.8547680039 | I51: 0.3256736759 | J51: 0.3584128927 | K51: 0.4354388356 | L51: 0.4869250902 | M51: 0.5296929453 | N51: 0.5596231352 | O51: 0.6038274214 | P51: 0.6425261514 | Q51: 0.4936452214 | R51: 0
A52: % of Libor Linked Mortgages (reverting to Libor plus a variable margin) | B52: 0.08186421941 | C52: 0.07361436075 | D52: 0.0684549023 | E52: 0.06036558121 | F52: 0.0597720718 | G52: 0.05944221697 | H52: 0.06182348779 | I52: 0.04423324346 | J52: 0.008042880546 | K52: 0.009837628917 | L52: 0.01125470556 | M52: 0.01315488687 | N52: 0.01391167604 | O52: 0.009231284949 | P52: 0.005543125127 | Q52: 0 | R52: 0
A53: % of Libor Linked Mortgages plus a Variable Margin | B53: 0 | C53: 0 | D53: 0 | E53: 0 | F53: 0.002963222577 | G53: 0.007685956826 | H53: 0.05601653219 | I53: 0.5907746734 | J53: 0.5715105904 | K53: 0.4792369635 | L53: 0.4154887983 | M53: 0.385613046 | N53: 0.3601639948 | O53: 0.3207295088 | P53: 0.2944924873 | Q53: 0.4273576904 | R53: 0
A54: % of Non Reversionary Libor Linked Mortgages | B54: 0.02708849239 | C54: 0.02736291396 | D54: 0.02728130436 | E54: 0.02768326349 | F54: 0.02666989712 | G54: 0.02673334796 | H54: 0.0273919761 | I54: 0.03931840722 | J54: 0.06203363639 | K54: 0.07548657202 | L54: 0.08633140599 | M54: 0.07153912182 | N54: 0.0663011939 | O54: 0.06621178478 | P54: 0.05743823612 | Q54: 0.07899708819 | R54: 0
A55: Weighted Average Loan Size | B55: 158519.1767 | C55: 157999.9135 | D55: 157929.173 | E55: 157483.7767 | F55: 157646.4776 | G55: 157351.3177 | H55: 156943.8611 | I55: 155950.4435 | J55: 151212.5099 | K55: 150171.1442 | L55: 149621.6211 | M55: 148221.2446 | N55: 147944.6325 | O55: 147569.1565 | P55: 148461.4595 | Q55: 145867.0916 | R55: 0
A56: Weighted Average Interest Rate | B56: 0.03822167918 | C56: 0.03819188135 | D56: 0.0381646422 | E56: 0.03812121624 | F56: 0.03812271462 | G56: 0.03797646491 | H56: 0.03845536805 | I56: 0.04705836238 | J56: 0.04713257262 | K56: 0.04618890124 | L56: 0.04656784296 | M56: 0.04704187443 | N56: 0.04618699718 | O56: 0.04640092705 | P56: 0.04631665119 | Q56: 0.04977295992 | R56: 0
A57: Weighted Average Maturity Date (years) | B57: 20.67123453 | C57: 20.4137832 | D57: 20.16289171 | E57: 19.95017727 | F57: 19.71089757 | G57: 19.4302641 | H57: 19.19849134 | I57: 18.89525273 | J57: 18.47173435 | K57: 18.13884335 | L57: 17.7573234 | M57: 17.41320401 | N57: 17.2355722 | O57: 17.13268306 | P57: 16.91567839 | Q57: 16.62435102 | R57: 0
A58: Weighted Average Seasoning (months) | B58: 4.737934807 | C58: 7.771899131 | D58: 10.75153613 | E58: 13.70284941 | F58: 16.7320459 | G58: 19.74820912 | H58: 22.7095308 | I58: 25.86574654 | J58: 28.78928523 | K58: 31.82114093 | L58: 34.7987909 | M58: 37.90333149 | N58: 40.98557159 | O58: 44.08128283 | P58: 47.09249481 | Q58: 50.07316743 | R58: 0
A59: % of Interest Only Mortgages (optional switching to repayment) | B59: 0.9151511923 | C59: 0.9149201376 | D59: 0.9151742621 | E59: 0.9136588695 | F59: 0.9141066708 | G59: 0.9141832257 | H59: 0.9156926583 | I59: 0.9080415936 | J59: 0.9058775367 | K59: 0.9030771439 | L59: 0.9112039186 | M59: 0.9146480441 | N59: 0.9165801027 | O59: 0.9160642024 | P59: 0.9149551545 | Q59: 0.9154741563 | R59: 0
A60: % of Repayment Mortgages | B60: 0.08484880769 | C60: 0.08507986237 | D60: 0.08482573794 | E60: 0.0863411305 | F60: 0.08589332917 | G60: 0.08581677425 | H60: 0.08430734173 | I60: 0.09195840641 | J60: 0.09412246331 | K60: 0.09692285607 | L60: 0.08879608135 | M60: 0.08535195595 | N60: 0.08341989726 | O60: 0.0839357976 | P60: 0.08504484548 | Q60: 0.08452584373 | R60: 0
A61: % of Mortgages in London | B61: 0.2106397497 | C61: 0.2059341027 | D61: 0.2047020097 | E61: 0.2014591389 | F61: 0.2026475769 | G61: 0.2014493233 | H61: 0.1997210624 | I61: 0.2099839011 | J61: 0.1913538191 | K61: 0.1949714445 | L61: 0.1816773072 | M61: 0.1884274477 | N61: 0.1928342365 | O61: 0.1894751898 | P61: 0.1896200171 | Q61: 0.1519472706 | R61: 0
A62: % of Mortgages in the South East | B62: 0.3886262068 | C62: 0.3912012692 | D62: 0.3917758276 | E62: 0.3921926965 | F62: 0.3913117385 | G62: 0.3891787293 | H62: 0.3890991883 | I62: 0.3653659938 | J62: 0.3323790964 | K62: 0.3057314915 | L62: 0.2905851567 | M62: 0.2941945664 | N62: 0.2904727381 | O62: 0.3067605371 | P62: 0.3099944785 | Q62: 0.3153869047 | R62: 0
A63: % of Owner Occupied Mortgages | B63: 0 | C63: 0 | D63: 0 | E63: 0 | F63: 0 | G63: 0 | H63: 0 | I63: 0 | J63: 0 | K63: 0 | L63: 0 | M63: 0 | N63: 0 | O63: 0 | P63: 0 | Q63: 0 | R63: 0
A64: % of Investment Home Loans - Professional Landlords | B64: 0.473686611 | C64: 0.4794372867 | D64: 0.4849645847 | E64: 0.4822067003 | F64: 0.4824409578 | G64: 0.4851944632 | H64: 0.4878963742 | I64: 0.5257885654 | J64: 0.5671179337 | K64: 0.5986828721 | L64: 0.6261935633 | M64: 0.6089187857 | N64: 0.6141872787 | O64: 0.6124649966 | P64: 0.6140167988 | Q64: 0.6226818957 | R64: 0
A65: % of Investment Home Loans - Emerging Professional Landlords | B65: 0.526313389 | C65: 0.5205627133 | D65: 0.5150354153 | E65: 0.5177932997 | F65: 0.5175590422 | G65: 0.5148055368 | H65: 0.5121036258 | I65: 0.4742114346 | J65: 0.4328820663 | K65: 0.4013171279 | L65: 0.3738064367 | M65: 0.3910812143 | N65: 0.3858127213 | O65: 0.3875350034 | P65: 0.3859832012 | Q65: 0.3773181043 | R65: 0
A66: Weighted Average Interest Coverage Ratio (calculated at the origination date) | B66: 1.509618807 | C66: 1.510505652 | D66: 1.513259294 | E66: 1.516560631 | F66: 1.51646592 | G66: 1.519199191 | H66: 1.521729445 | I66: 1.547446885 | J66: 1.599513417 | K66: 1.615867892 | L66: 1.631408607 | M66: 1.621246621 | N66: 1.623008159 | O66: 1.636260977 | P66: 1.629320105 | Q66: 1.681241587 | R66: 0
A67: % of Paragon Originated Assets | B67: 0.1889372951 | C67: 0.190500272 | D67: 0.19099905 | E67: 0.1915604094 | F67: 0.1917601622 | G67: 0.1922216959 | H67: 0.1941473472 | I67: 0.2393712131 | J67: 0.3181599236 | K67: 0.3592415939 | L67: 0.3931675337 | M67: 0.407433824 | N67: 0.4089764017 | O67: 0.4178184221 | P67: 0.4182864751 | Q67: 0.5122711645 | R67: 0
A68: % of Mortgage Trust Originated Assets | B68: 0.8110627049 | C68: 0.809499728 | D68: 0.80900095 | E68: 0.8084395906 | F68: 0.8082398378 | G68: 0.8077783041 | H68: 0.8058526528 | I68: 0.7606287869 | J68: 0.6818400764 | K68: 0.6407584061 | L68: 0.6068324663 | M68: 0.592566176 | N68: 0.5910235983 | O68: 0.5821815779 | P68: 0.5817135249 | Q68: 0.4877288355 | R68: 0
A70: Underlying Assets - Paragon Mortgages 2010 Paragon Originated Assets | B70: =+B5 -> 2015-09-30 | C70: 2015-12-31 | D70: =+D47 -> 2016-03-31 | E70: 2016-06-30 | F70: 2016-09-30 | G70: 2016-12-30 | H70: 2017-03-31 | I70: 2017-06-30 | J70: =+J47 -> 2017-09-29 | K70: 2017-12-29 | L70: =+L47 -> 2018-03-29 | M70: 2018-06-29 | N70: =+N47 -> 2018-09-28 | O70: 2018-12-31 | P70: =+P47 -> 2019-03-29 | Q70: 2019-06-28 | R70: =+R47 -> 2019-09-30
A71: Weighted Average LTV | B71: 0.6973646802 | C71: 0.6970946799 | D71: 0.6984746968 | E71: 0.6998875065 | F71: 0.6996673686 | G71: 0.6998215332 | H71: 0.6992250855 | I71: 0.7026255645 | J71: 0.7027604147 | K71: 0.6975171581 | L71: 0.6959650228 | M71: 0.6966559253 | N71: 0.6943263545 | O71: 0.6911004459 | P71: 0.6928214785 | Q71: 0.6911320063 | R71: 0
A72: Weighted Average Nationwide Indexed LTV | B72: 0.684903618 | C72: 0.6786365521 | D72: 0.6759119463 | E72: 0.672564525 | F72: 0.6519119508 | G72: 0.6481238932 | H72: 0.6425718963 | I72: 0.647752644 | J72: 0.6329180144 | K72: 0.628960984 | L72: 0.6266222619 | M72: 0.6176719669 | N72: 0.6162415207 | O72: 0.6090961741 | P72: 0.6209661522 | Q72: 0.6193866864 | R72: 0
A73: Weighted Average Halifax Indexed LTV | B73: 0.6782449449 | C73: 0.6690242186 | D73: 0.6693205327 | E73: 0.6450258652 | F73: N/A | G73: N/A | H73: N/A | I73: N/A | J73: N/A | K73: N/A | L73: N/A | M73: N/A | N73: N/A | O73: N/A | P73: N/A | Q73: N/A | R73: N/A
A74: % of Fixed Rate Mortgages (reverting to Libor plus a variable margin) | B74: 0.8270466776 | C74: 0.8260339115 | D74: 0.8265989952 | E74: 0.8245458298 | F74: 0.818062936 | G74: 0.7969024064 | H74: 0.7245126574 | I74: 0.5049828559 | J74: 0.3798249636 | K74: 0.4112102658 | L74: 0.4295918525 | M74: 0.460828017 | N74: 0.485192739 | O74: 0.5161629105 | P74: 0.5502726519 | Q74: 0.5033712903 | R74: 0
A75: % of Libor Linked Mortgages (reverting to Libor plus a variable margin) | B75: 0.03347625439 | C75: 0.03420924762 | D75: 0.03444678257 | E75: 0.03483674956 | F75: 0.03518638836 | G75: 0.03565930712 | H75: 0.036252321 | I75: 0.02330688442 | J75: 0.009815682053 | K75: 0.01063305743 | L75: 0.0111150348 | M75: 0.01253673296 | N75: 0.01320795388 | O75: 0 | P75: 0 | Q75: 0 | R75: 0
A76: % of Libor Linked Mortgages plus a Variable Margin | B76: 0 | C76: 0 | D76: 0 | E76: 0 | F76: 0.01102752041 | G76: 0.02979666246 | H76: 0.09958644997 | I76: 0.3091082975 | J76: 0.4173222712 | K76: 0.3690876209 | L76: 0.3407913285 | M76: 0.3522277083 | N76: 0.3406835075 | O76: 0.3265954038 | P76: 0.3136741869 | Q76: 0.343789062 | R76: 0
A77: % of Non Reversionary Libor Linked Mortgages | B77: 0.139477068 | C77: 0.1397568409 | D77: 0.1389542222 | E77: 0.1406174206 | F77: 0.1357231552 | G77: 0.1376416241 | H77: 0.1396485716 | I77: 0.1626019622 | J77: 0.1930370831 | K77: 0.2090690559 | L77: 0.2185017842 | M77: 0.1744075418 | N77: 0.1609157996 | O77: 0.1572416857 | P77: 0.1360531612 | Q77: 0.1528396477 | R77: 0
A78: Weighted Average Loan Size | B78: 190259.816 | C78: 190524.7902 | D78: 191040.706 | E78: 190087.5534 | F78: 190049.3174 | G78: 188720.1036 | H78: 188153.6968 | I78: 186189.3695 | J78: 186779.0705 | K78: 187095.2885 | L78: 185904.3097 | M78: 177576.3818 | N78: 176979.6506 | O78: 175641.6417 | P78: 175007.458 | Q78: 176727.0195 | R78: 0
A79: Weighted Average Interest Rate | B79: 0.04654530602 | C79: 0.04654346123 | D79: 0.04654343796 | E79: 0.04651093047 | F79: 0.04652599583 | G79: 0.04623224844 | H79: 0.04631456448 | I79: 0.04678791515 | J79: 0.04770339848 | K79: 0.04738828013 | L79: 0.04834379646 | M79: 0.04956414539 | N79: 0.04889183674 | O79: 0.04967511632 | P79: 0.05000258512 | Q79: 0.05058070264 | R79: 0
A80: Weighted Average Maturity Date (years) | B80: 19.85697406 | C80: 19.59668156 | D80: 19.33107319 | E80: 19.18984322 | F80: 18.93703926 | G80: 18.63261757 | H80: 18.38021206 | I80: 18.23876931 | J80: 18.1000157 | K80: 17.6959314 | L80: 17.30848892 | M80: 16.72103572 | N80: 16.59382284 | O80: 16.38904583 | P80: 16.16564822 | Q80: 15.85237689 | R80: 0
A81: Weighted Average Seasoning (months) | B81: 5.620758757 | C81: 8.648038313 | D81: 11.56783311 | E81: 14.40168194 | F81: 17.45305807 | G81: 20.47644617 | H81: 23.43439632 | I81: 26.31988062 | J81: 29.0994246 | K81: 32.18671943 | L81: 35.20861266 | M81: 38.2655989 | N81: 41.3527034 | O81: 44.45427839 | P81: 47.52355725 | Q81: 50.02403195 | R81: 0
A82: % of Interest Only Mortgages (optional switching to repayment) | B82: 0.9514822816 | C82: 0.9517341114 | D82: 0.9517666727 | E82: 0.9515995409 | F82: 0.9515021533 | G82: 0.9512485849 | H82: 0.9508466514 | I82: 0.9481066422 | J82: 0.9489059797 | K82: 0.9451289721 | L82: 0.9581318002 | M82: 0.9531932747 | N82: 0.9576808119 | O82: 0.9555275023 | P82: 0.9530026211 | Q82: 0.9476885396 | R82: 0
A83: % of Repayment Mortgages | B83: 0.04851771837 | C83: 0.04826588859 | D83: 0.04823332729 | E83: 0.04840045905 | F83: 0.04849784668 | G83: 0.04875141513 | H83: 0.0491533486 | I83: 0.05189335776 | J83: 0.05109402033 | K83: 0.05487102793 | L83: 0.04186819981 | M83: 0.04680672532 | N83: 0.0423191881 | O83: 0.04447249766 | P83: 0.04699737891 | Q83: 0.05231146045 | R83: 0
A84: % of Mortgages in London | B84: 0.1481002442 | C84: 0.1483368029 | D84: 0.1424998606 | E84: 0.1370161652 | F84: 0.1385546407 | G84: 0.131411918 | H84: 0.1336496292 | I84: 0.1364682305 | J84: 0.1343811173 | K84: 0.1357150896 | L84: 0.1320914331 | M84: 0.1489869399 | N84: 0.156963751 | O84: 0.1664836577 | P84: 0.1573535086 | Q84: 0.1564560695 | R84: 0
A85: % of Mortgages in the South East | B85: 0.334128527 | C85: 0.3314879273 | D85: 0.3316274583 | E85: 0.3298595057 | F85: 0.3198486054 | G85: 0.3192571409 | H85: 0.3134103019 | I85: 0.3239167379 | J85: 0.2940184179 | K85: 0.2922888091 | L85: 0.2698350373 | M85: 0.2941677443 | N85: 0.2937921253 | O85: 0.3113736894 | P85: 0.3132651805 | Q85: 0.3052447784 | R85: 0
A86: % of Owner Occupied Mortgages | B86: 0 | C86: 0 | D86: 0 | E86: 0 | F86: 0 | G86: 0 | H86: 0 | I86: 0 | J86: 0 | K86: 0 | L86: 0 | M86: 0 | N86: 0 | O86: 0 | P86: 0 | Q86: 0 | R86: 0
A87: % of Investment Home Loans - Professional Landlords | B87: 0.8153603178 | C87: 0.815761083 | D87: 0.8194815914 | E87: 0.8230644423 | F87: 0.8226233769 | G87: 0.8171160405 | H87: 0.8225672036 | I87: 0.8175614851 | J87: 0.8217218306 | K87: 0.8375896156 | L87: 0.8424417531 | M87: 0.8347305309 | N87: 0.8318128255 | O87: 0.8356763234 | P87: 0.8255571798 | Q87: 0.8232330071 | R87: 0
A88: % of Investment Home Loans - Emerging Professional Landlords | B88: 0.1846396822 | C88: 0.184238917 | D88: 0.1805184086 | E88: 0.1769355577 | F88: 0.1773766231 | G88: 0.1828839595 | H88: 0.1774327964 | I88: 0.1824385149 | J88: 0.1782781694 | K88: 0.1624103844 | L88: 0.1575582469 | M88: 0.1652694691 | N88: 0.1681871745 | O88: 0.1643236766 | P88: 0.1744428202 | Q88: 0.1767669929 | R88: 0
A89: Weighted Average Interest Coverage Ratio (calculated at the origination date) | B89: 1.688055202 | C89: 1.69096768 | D89: 1.698775699 | E89: 1.702505224 | F89: 1.704306687 | G89: 1.708021031 | H89: 1.712019219 | I89: 1.735687879 | J89: 1.775485738 | K89: 1.773939725 | L89: 1.784316618 | M89: 1.77490215 | N89: 1.780091036 | O89: 1.792402685 | P89: 1.787874935 | Q89: 1.791598568 | R89: 0
A90: Number of Properties in Possession | B90: 0 | C90: 0 | D90: 0 | E90: 0 | F90: 0 | G90: 0 | H90: 0 | I90: 0 | J90: 0 | K90: 0 | L90: 0 | M90: 0 | N90: 0 | O90: 0 | P90: 0 | Q90: 0 | R90: 0
A91: Appointment of a Receiver of Rent | B91: 0 | C91: 0 | D91: 0 | E91: 0 | F91: 0 | G91: 0 | H91: 0 | I91: 0 | J91: 0 | K91: 0 | L91: 0 | M91: 0 | N91: 0 | O91: 0 | P91: 0 | Q91: 0 | R91: 0
A92: PML Quarterly Losses | B92: 0 | C92: 0 | D92: 0 | E92: 0 | F92: 0 | G92: 0 | H92: 0 | I92: 0 | J92: 0 | K92: 0 | L92: 0 | M92: 0 | N92: 0 | O92: 0 | P92: 0 | Q92: 0 | R92: 0
A93: Arrears excluding Receiver of Rent and Possession Cases
A94: Performing Loans | B94: 1 | C94: 1 | D94: 1 | E94: 1 | F94: 1 | G94: 1 | H94: 1 | I94: 1 | J94: 1 | K94: 1 | L94: 1 | M94: 1 | N94: 1 | O94: 1 | P94: 1 | Q94: 1 | R94: 0
A95: >1 to 2 months arrears | B95: 0 | C95: 0 | D95: 0 | E95: 0 | F95: 0 | G95: 0 | H95: 0 | I95: 0 | J95: 0 | K95: 0 | L95: 0 | M95: 0 | N95: 0 | O95: 0 | P95: 0 | Q95: 0 | R95: 0
A96: >2 to 3 months arrears | B96: 0 | C96: 0 | D96: 0 | E96: 0 | F96: 0 | G96: 0 | H96: 0 | I96: 0 | J96: 0 | K96: 0 | L96: 0 | M96: 0 | N96: 0 | O96: 0 | P96: 0 | Q96: 0 | R96: 0
A97: >3 months arrears | B97: 0 | C97: 0 | D97: 0 | E97: 0 | F97: 0 | G97: 0 | H97: 0 | I97: 0 | J97: 0 | K97: 0 | L97: 0 | M97: 0 | N97: 0 | O97: 0 | P97: 0 | Q97: 0 | R97: 0
A98: Total | B98: =SUM(B94:B97) -> 1 | C98: 1 | D98: 1 | E98: 1 | F98: 1 | G98: 1 | H98: 1 | I98: 1 | J98: 1 | K98: 1 | L98: 1 | M98: 1 | N98: 1 | O98: 1 | P98: 1 | Q98: 1 | R98: =SUM(R94:R97) -> 0
A100: Underlying Assets - Paragon Mortgages 2010 Mortgage Trust Originated Assets | B100: =+B70 -> 2015-09-30 | C100: 2015-12-31 | D100: =+D70 -> 2016-03-31 | E100: 2016-06-30 | F100: 2016-09-30 | G100: 2016-12-30 | H100: 2017-03-31 | I100: 2017-06-30 | J100: =+J70 -> 2017-09-29 | K100: 2017-12-29 | L100: =+L70 -> 2018-03-29 | M100: 2018-06-29 | N100: =+N70 -> 2018-09-28 | O100: 2018-12-31 | P100: =+P70 -> 2019-03-29 | Q100: 2019-06-28 | R100: =+R70 -> 2019-09-30
A101: Weighted Average LTV | B101: 0.7331186077 | C101: 0.733422254 | D101: 0.7328111949 | E101: 0.7327363648 | F101: 0.7319195537 | G101: 0.7322998091 | H101: 0.7320105792 | I101: 0.7281878601 | J101: 0.7284154865 | K101: 0.7274707411 | L101: 0.7296927809 | M101: 0.7324652421 | N101: 0.7315533589 | O101: 0.7315961044 | P101: 0.7301162993 | Q101: 0.7294509166 | R101: 0
A102: Weighted Average Nationwide Indexed LTV | B102: 0.7206659234 | C102: 0.7119109328 | D102: 0.7039999875 | E102: 0.6979674211 | F102: 0.6740392935 | G102: 0.6691798097 | H102: 0.6637823915 | I102: 0.6618463438 | J102: 0.6512163069 | K102: 0.6516347921 | L102: 0.6504873337 | M102: 0.6468939125 | N102: 0.6465190188 | O102: 0.6439319213 | P102: 0.6531201788 | Q102: 0.6508859686 | R102: 0
A103: Weighted Average Halifax Indexed LTV | B103: 0.7138872185 | C103: 0.6994252533 | D103: 0.6962265689 | E103: 0.6653037111 | F103: N/A | G103: N/A | H103: N/A | I103: N/A | J103: N/A | K103: N/A | L103: N/A | M103: N/A | N103: N/A | O103: N/A | P103: N/A | Q103: N/A | R103: N/A
A104: % of Fixed Rate Mortgages (reverting to Libor plus a variable margin) | B104: 0.9059562492 | C104: 0.916199246 | D104: 0.922599869 | E104: 0.9326619173 | F104: 0.9325485975 | G104: 0.9321326686 | H104: 0.8861493363 | I104: 0.2692447625 | J104: 0.3484216014 | K104: 0.4490225981 | L104: 0.5240713685 | M104: 0.5770427641 | N104: 0.6111274672 | O104: 0.6667422388 | P104: 0.7088618811 | Q104: 0.4834297404 | R104: 0
A105: % of Libor Linked Mortgages (reverting to Libor plus a variable margin) | B105: 0.09313621007 | C105: 0.08288760015 | D105: 0.07648396402 | E105: 0.06641465835 | F105: 0.06560518521 | G105: 0.06510167977 | H105: 0.06798413537 | I105: 0.05081880534 | J105: 0.007215656668 | K105: 0.009391671433 | L105: 0.01134519842 | M105: 0.01357991419 | N105: 0.01439863757 | O105: 0.01585636732 | P105: 0.009528960372 | Q105: 0 | R105: 0
A106: % of Libor Linked Mortgages plus a Variable Margin | B106: 0 | C106: 0 | D106: 0 | E106: 0 | F106: 0.001049915427 | G106: 0.002424417475 | H106: 0.04551959591 | I106: 0.6794155759 | J106: 0.6434578776 | K106: 0.5409922601 | L106: 0.4638853848 | M106: 0.4085679773 | N106: 0.3736440989 | O106: 0.31651969 | P106: 0.2806997094 | Q106: 0.5151314603 | R106: 0
A107: % of Non Reversionary Libor Linked Mortgages | B107: 0.0009075407178 | C107: 0.0009131538007 | D107: 0.0009161669495 | E107: 0.0009234243821 | F107: 0.0007963018296 | G107: 0.0003412341663 | H107: 0.0003469323804 | I107: 0.0005208562494 | J107: 0.0009048643529 | K107: 0.0005934703812 | L107: 0.0006980483055 | M107: 0.0008093444164 | N107: 0.0008297963053 | O107: 0.0008817038914 | P107: 0.0009094491842 | Q107: 0.001438799293 | R107: 0
A108: Weighted Average Loan Size | B108: 152589.165 | C108: 151897.6074 | D108: 151720.7606 | E108: 151333.3254 | F108: 151517.3691 | G108: 151364.2645 | H108: 150912.975 | I108: 148367.3073 | J108: 138873.0909 | K108: 135210.4996 | L108: 132825.7984 | M108: 133093.4438 | N108: 132861.5063 | O108: 132384.0399 | P108: 133861.1603 | Q108: 123260.4003 | R108: 0
A109: Weighted Average Interest Rate | B109: 0.03628268786 | C109: 0.03622649682 | D109: 0.03618647143 | E109: 0.03613326672 | F109: 0.03612898146 | G109: 0.03601189034 | H109: 0.03656191752 | I109: 0.0471434726 | J109: 0.0468662141 | K109: 0.04551646872 | L109: 0.04541720042 | M109: 0.0453076234 | N109: 0.04431530279 | O109: 0.04405111619 | P109: 0.0436662464 | Q109: 0.0489245719 | R109: 0
A110: Weighted Average Maturity Date (years) | B110: 20.86091674 | C110: 20.60607244 | D110: 20.35927782 | E110: 20.13033904 | F110: 19.89450049 | G110: 19.62007481 | H110: 19.39563252 | I110: 19.10184921 | J110: 18.64518554 | K110: 18.3871622 | L110: 18.04812384 | M110: 17.88912178 | N110: 17.6796498 | O110: 17.66637452 | P110: 17.4549945 | Q110: 17.43517059 | R110: 0
A111: Weighted Average Seasoning (months) | B111: 4.532280708 | C111: 7.565716539 | D111: 10.55881454 | E111: 13.53726048 | F111: 16.56098106 | G111: 19.57491534 | H111: 22.534895 | I111: 25.72282974 | J111: 28.64456813 | K111: 31.61617911 | L111: 34.53326685 | M111: 37.65424539 | N111: 40.73152379 | O111: 43.81359244 | P111: 46.78253539 | Q111: 50.1247754 | R111: 0
A112: % of Interest Only Mortgages (optional switching to repayment) | B112: 0.9066878544 | C112: 0.9062566733 | D112: 0.9065350687 | E112: 0.904668797 | F112: 0.9052343492 | G112: 0.9053630258 | H112: 0.9072233004 | I112: 0.8954330525 | J112: 0.8857996231 | K112: 0.8795007607 | L112: 0.880799284 | M112: 0.8881452983 | N112: 0.8881392415 | O112: 0.8877422933 | P112: 0.8875967728 | Q112: 0.8816387575 | R112: 0
A113: % of Repayment Mortgages | B113: 0.09331214562 | C113: 0.09374332671 | D113: 0.09346493134 | E113: 0.09533120303 | F113: 0.09476565078 | G113: 0.09463697424 | H113: 0.09277669961 | I113: 0.1045669475 | J113: 0.1142003769 | K113: 0.1204992393 | L113: 0.119200716 | M113: 0.1118547017 | N113: 0.1118607585 | O113: 0.1122577067 | P113: 0.1124032272 | Q113: 0.1183612425 | R113: 0
A114: % of Mortgages in London | B114: 0.2252083459 | C114: 0.2194885252 | D114: 0.2193874701 | E114: 0.2167289532 | F114: 0.2178540431 | G114: 0.2181156645 | H114: 0.2156391008 | I114: 0.2331194116 | J114: 0.2179383967 | K114: 0.2281935563 | L114: 0.2138040587 | M114: 0.2155457639 | N114: 0.2176558885 | O114: 0.2059756872 | P114: 0.2128215476 | Q114: 0.1472115907 | R114: 0
A115: % of Mortgages in the South East | B115: 0.4013214573 | C115: 0.4052536617 | D115: 0.405976406 | E115: 0.4069625961 | F115: 0.408266832 | G115: 0.4058175103 | H115: 0.4073342793 | I115: 0.3784101473 | J115: 0.3502789397 | K115: 0.3132681396 | L115: 0.3040291857 | M115: 0.2942130086 | N115: 0.2881757891 | O115: 0.3034497831 | P115: 0.3076426501 | Q115: 0.326039379 | R115: 0
A116: % of Owner Occupied Mortgages | B116: 0 | C116: 0 | D116: 0 | E116: 0 | F116: 0 | G116: 0 | H116: 0 | I116: 0 | J116: 0 | K116: 0 | L116: 0 | M116: 0 | N116: 0 | O116: 0 | P116: 0 | Q116: 0 | R116: 0
A117: % of Investment Home Loans - Professional Landlords | B117: 0.3940936207 | C117: 0.4002899165 | D117: 0.4059876311 | E117: 0.401440185 | F117: 0.4017304647 | G117: 0.4062092662 | H117: 0.4072669272 | I117: 0.4339671159 | J117: 0.4483147727 | K117: 0.4647396597 | L117: 0.4860860837 | M117: 0.4536562233 | N117: 0.4635947925 | O117: 0.4522713252 | P117: 0.4619067369 | Q117: 0.4120391289 | R117: 0
A118: % of Investment Home Loans - Emerging Professional Landlords | B118: 0.6059063793 | C118: 0.5997100835 | D118: 0.5940123689 | E118: 0.598559815 | F118: 0.5982695353 | G118: 0.5937907338 | H118: 0.5927330728 | I118: 0.5660328841 | J118: 0.5516852273 | K118: 0.5352603403 | L118: 0.5139139163 | M118: 0.5463437767 | N118: 0.5364052075 | O118: 0.5477286748 | P118: 0.5380932631 | Q118: 0.5879608711 | R118: 0
A119: Weighted Average Interest Coverage Ratio (calculated at the origination date) | B119: 1.42361912 | C119: 1.423958445 | D119: 1.424851431 | E119: 1.426225904 | F119: 1.425207223 | G119: 1.428814192 | H119: 1.429135302 | I119: 1.435843602 | J119: 1.449009055 | K119: 1.456144568 | L119: 1.459710393 | M119: 1.426850391 | N119: 1.427974604 | O119: 1.429205323 | P119: 1.425551628 | Q119: 1.449659157 | R119: 0
A120: Number of Properties in Possession | B120: 0 | C120: 0 | D120: 0 | E120: 0 | F120: 0 | G120: 0 | H120: 0 | I120: 0 | J120: 0 | K120: 0 | L120: 0 | M120: 0 | N120: 0 | O120: 0 | P120: 0 | Q120: 0 | R120: 0
A121: Appointment of a Receiver of Rent | B121: 0 | C121: 0 | D121: 0 | E121: 0 | F121: 0 | G121: 0 | H121: 0 | I121: 0 | J121: 0 | K121: 1 | L121: 1 | M121: 1 | N121: 0 | O121: 0 | P121: 0 | Q121: 0 | R121: 0
A122: MTL Quarterly Losses | B122: 0 | C122: 0 | D122: 0 | E122: 0 | F122: 0 | G122: 0 | H122: 0 | I122: 0 | J122: 0 | K122: 0 | L122: 0 | M122: 0 | N122: 0 | O122: 0 | P122: 0 | Q122: 0 | R122: 0
A123: Arrears excluding Receiver of Rent and Possession Cases
A124: Performing Loans | B124: 1 | C124: 1 | D124: 1 | E124: 1 | F124: 1 | G124: 1 | H124: 1 | I124: 1 | J124: 0.9986579483 | K124: 0.9990407658 | L124: 1 | M124: 0.9964525819 | N124: 0.9985869232 | O124: 0.998445561 | P124: 0.9983385483 | Q124: 0.9927583704 | R124: 0
A125: >1 to 2 months arrears | B125: 0 | C125: 0 | D125: 0 | E125: 0 | F125: 0 | G125: 0 | H125: 0 | I125: 0 | J125: 0.001342051673 | K125: 0.0009592342086 | L125: 0 | M125: 0.002211315836 | N125: 0 | O125: 0 | P125: 0 | Q125: 0.004514136746 | R125: 0
A126: >2 to 3 months arrears | B126: 0 | C126: 0 | D126: 0 | E126: 0 | F126: 0 | G126: 0 | H126: 0 | I126: 0 | J126: 0 | K126: 0 | L126: 0 | M126: 0.001336102221 | N126: 0 | O126: 0 | P126: 0.001661451653 | Q126: 0 | R126: 0
A127: >3 months arrears | B127: 0 | C127: 0 | D127: 0 | E127: 0 | F127: 0 | G127: 0 | H127: 0 | I127: 0 | J127: 0 | K127: 0 | L127: 0 | M127: 0 | N127: 0.001413076758 | O127: 0.001554439027 | P127: 0 | Q127: 0.00272749285 | R127: 0
A128: Total | B128: =SUM(B124:B127) -> 1 | C128: 1 | D128: 1 | E128: 1 | F128: 1 | G128: 1 | H128: 1 | I128: 1 | J128: 1 | K128: 1 | L128: 1 | M128: 1 | N128: 1 | O128: 1 | P128: 1 | Q128: 1 | R128: =SUM(R124:R127) -> 0

Sheet Graphs
K2: PARAGON MORTGAGES (NO.23) PLC
